[Event "Summer Prague Open-A 2022"]
[Site "Prague"]
[Date "2022.08.08"]
[Round "5.15"]
[White "Winter, Ondrej"]
[Black "Hollan, Martin"]
[Result "1-0"]
[ECO "B30"]
[WhiteElo "2168"]
[BlackElo "2399"]
[Annotator "RC"]
[PlyCount "99"]
[EventDate "2022.08.05"]
[EventType "swiss"]
[EventCountry "CZE"]
[SourceTitle "playchess.com"]
[Source "ChessBase"]
[SourceQuality "1"]
[TimeControl "40/5400+30:1800+30"]

1. e4 {[%emt 0:00:02]} c5 {[%emt 0:08:36]} 2. Nf3 {[%emt 0:00:06]} Nc6 {[%emt 0:00:06]} 3. Bb5 {[%emt 0:00:04]} e6 {[%emt 0:00:08]} 4. O-O {[%emt 0:00:12]} Nge7 {[%emt 0:00:07]} 5. Re1 {[%emt 0:00:16]} Nd4 {[%emt 0:00:10]} 6. Nxd4 {[%emt 0:00:58]} cxd4 {[%emt 0:00:06]} 7. d3 {[%emt 0:01:19]} Nc6 {[%emt 0:03:30]} 8. Nd2 {[%emt 0:06:00]} a6 {[%emt 0:09:28]} 9. Ba4 {[%emt 0:01:58]} g6 {[%emt 0:00:36]} 10. f4 {[%emt 0:03:38]} Bg7 {[%emt 0:06:50]} 11. Nf3 {[%emt 0:02:54]} O-O {[%emt 0:02:14]} 12. Bd2 {[%emt 0:19:55]} d6 {[%emt 0:07:26]} 13. Bb3 {[%emt 0:01:40]} Bd7 {[%emt 0:16:30]} 14. Qe2 {[%emt 0:06:16]} Na5 {[%emt 0:03:53]} 15. Qf2 {[%emt 0:03:58]} Nxb3 {[%emt 0:02:17]} 16. axb3 {[%emt 0:00:02]} Rc8 {[%emt 0:05:41]} 17. Ba5 {[%emt 0:07:45]} Qf6 {[%emt 0:05:21]} 18. e5 {[%emt 0:01:16]} dxe5 {[%emt 0:03:16]} 19. fxe5 {[%emt 0:00:52]} Qe7 {[%emt 0:01:39]} 20. Qxd4 {[%emt 0:01:51]} Rfe8 {[%emt 0:01:52]} 21. Bb4 {[%emt 0:05:45]} Qd8 {[%emt 0:00:07]} 22. c4 {[%emt 0:00:32]} h6 {[%emt 0:03:52]} 23. Qe3 {[%emt 0:06:32]} Bc6 {[%emt 0:03:02]} 24. Bd6 {[%emt 0:03:29]} Bxf3 {[%emt 0:01:47]} 25. Qxf3 {[%emt 0:06:30]} Qb6+ {[%emt 0:01:19]} 26. Kh1 {[%emt 0:01:13]} Qxb3 {[%emt 0:01:39]} 27. Rf1 {[%emt 0:01:19]} Kh7 {[%emt 0:11:17]} 28. Rad1 {[%emt 0:03:34]} b5 {[%emt 0:00:55]} 29. c5 {[%emt 0:04:44]} Qxb2 {[%emt 0:00:38]} 30. Qxf7 {[%emt 0:01:51]} Qe2 {[%emt 0:00:15]} 31. Qb7 {[%emt 0:02:17]} Rg8 {[%emt 0:00:50]} 32. d4 {[%emt 0:02:47]} a5 {[%emt 0:00:26]} 33. Rde1 {[%emt 0:01:25]} Qd2 {[%emt 0:00:32]} 34. Qxb5 {[%emt 0:00:27]} Qxd4 {[%emt 0:00:08]} 35. Qxa5 {[%emt 0:00:10]} Qd5 {[%emt 0:00:20]} 36. Rd1 {[%emt 0:01:38]} Qc6 {[%emt 0:00:23]} 37. Qb6 {[%emt 0:00:31]} Qe4 {[%emt 0:00:36]} 38. Rfe1 {[%emt 0:00:10]} Qa4 {[%emt 0:00:38]} 39. h3 {[%emt 0:01:00]} Ra8 {[%emt 0:00:31]} 40. Qb7 {[%emt 0:00:40]} Ra7 {[%emt 0:00:55]} 41. Qe4 {[%emt 0:30:34]} Qa2 {[%emt 0:18:54]} 42. c6 {[%emt 0:00:00]} Rc8 {[%emt 0:00:09]} 43. Rc1 {[%emt 0:00:00]} Ra4 {[%emt 0:00:45]} 44. Qc2 {[%emt 0:00:00]} Qxc2 {[%emt 0:02:39]} 45. Rxc2 {[%emt 0:00:00]} Kg8 {[%emt 0:00:10]} 46. c7 {[%emt 0:00:00]} Kf7 {[%emt 0:00:13]} 47. Rf1+ {[%emt 0:00:00]} Ke8 {[%emt 0:00:06]} 48. Rcf2 {[%emt 0:00:00]} Ra5 {[%emt 0:00:26]} 49. Rf7 {[%emt 0:00:00]} Ra1 {[%emt 0:00:15]} 50. Re7# 1-0

[Event "Summer Prague Open-A 2022"]
[Site "Prague"]
[Date "2022.08.08"]
[Round "5.16"]
[White "Hrabusa, Matej"]
[Black "Prilleltensky, Matan"]
[Result "1/2-1/2"]
[ECO "D30"]
[WhiteElo "2354"]
[BlackElo "2191"]
[Annotator "RC"]
[PlyCount "131"]
[EventDate "2022.08.05"]
[EventType "swiss"]
[EventCountry "CZE"]
[SourceTitle "playchess.com"]
[Source "ChessBase"]
[SourceQuality "1"]
[TimeControl "40/5400+30:1800+30"]

1. d4 {[%emt 0:00:06]} d5 {[%emt 0:00:07]} 2. c4 {[%emt 0:00:04]} e6 {[%emt 0:00:46]} 3. Nf3 {[%emt 0:00:06]} c6 {[%emt 0:00:09]} 4. g3 {[%emt 0:00:20]} dxc4 {[%emt 0:00:50]} 5. Bg2 {[%emt 0:00:14]} b5 {[%emt 0:01:03]} 6. O-O {[%emt 0:00:40]} Bb7 {[%emt 0:00:33]} 7. a4 {[%emt 0:03:46]} Nf6 {[%emt 0:06:18]} 8. Ne5 {[%emt 0:01:31]} a6 {[%emt 0:04:24]} 9. b3 {[%emt 0:02:26]} cxb3 {[%emt 0:01:23]} 10. Bb2 {[%emt 0:00:31]} Be7 {[%emt 0:03:59]} 11. Nd2 {[%emt 0:00:59]} O-O {[%emt 0:01:37]} 12. Qxb3 {[%emt 0:04:47]} Nfd7 {[%emt 0:11:02]} 13. Nd3 {[%emt 0:05:17]} Nf6 {[%emt 0:04:04]} 14. Rfc1 {[%emt 0:03:39]} Nbd7 {[%emt 0:05:26]} 15. Bxc6 {[%emt 0:11:02]} Rb8 {[%emt 0:06:26]} 16. axb5 {[%emt 0:09:37]} Bxc6 {[%emt 0:04:36]} 17. Rxc6 {[%emt 0:00:05]} axb5 {[%emt 0:02:09]} 18. Nf3 {[%emt 0:03:50]} b4 {[%emt 0:04:15]} 19. Nf4 {[%emt 0:06:17]} Qe8 {[%emt 0:14:53]} 20. Rac1 {[%emt 0:02:12]} Kh8 {[%emt 0:01:26]} 21. h4 {[%emt 0:04:32]} Nb6 {[%emt 0:01:27]} 22. Ne5 {[%emt 0:06:17]} Nbd5 {[%emt 0:04:29]} 23. Nxd5 {[%emt 0:02:21]} Nxd5 {[%emt 0:01:31]} 24. e4 {[%emt 0:02:19]} Nf6 {[%emt 0:00:41]} 25. Qf3 {[%emt 0:03:14]} Nd7 {[%emt 0:02:13]} 26. Nxd7 {[%emt 0:03:29]} Qxd7 {[%emt 0:00:07]} 27. d5 {[%emt 0:00:05]} exd5 {[%emt 0:01:55]} 28. exd5 {[%emt 0:01:28]} Bd6 {[%emt 0:00:58]} 29. h5 {[%emt 0:02:27]} h6 {[%emt 0:02:38]} 30. R1c4 {[%emt 0:02:55]} f6 {[%emt 0:00:41]} 31. Qe4 {[%emt 0:05:22]} Rbe8 {[%emt 0:02:24]} 32. Qd3 {[%emt 0:04:34]} Qh3 {[%emt 0:03:23]} 33. Rc1 {[%emt 0:01:01]} Be5 {[%emt 0:03:04]} 34. Bxe5 {[%emt 0:05:26]} Rxe5 {[%emt 0:00:08]} 35. Qf1 {[%emt 0:00:57]} Qxf1+ {[%emt 0:00:47]} 36. Rxf1 {[%emt 0:00:56]} Rxd5 {[%emt 0:00:15]} 37. Rb6 {[%emt 0:00:08]} Rxh5 {[%emt 0:01:26]} 38. Rxb4 {[%emt 0:00:07]} Rd5 {[%emt 0:00:52]} 39. Ra1 {[%emt 0:01:21]} Rfd8 {[%emt 0:01:20]} 40. Ra7 {[%emt 0:00:57]} R5d7 {[%emt 0:00:45]} 41. Rbb7 {[%emt 0:30:46]} Rxb7 {[%emt 0:32:27]} 42. Rxb7 {[%emt 0:01:20]} Kh7 {[%emt 0:00:19]} 43. Kg2 {[%emt 0:00:46]} Rd3 {[%emt 0:00:22]} 44. g4 {[%emt 0:00:00]} Rd5 {[%emt 0:00:00]} 45. Kg3 {[%emt 0:00:00]} f5 {[%emt 0:00:00]} 46. f3 {[%emt 0:00:00]} fxg4 {[%emt 0:00:00]} 47. fxg4 {[%emt 0:00:00]} Kg6 {[%emt 0:00:00]} 48. Kf4 {[%emt 0:00:00]} Rd4+ {[%emt 0:00:00]} 49. Kg3 {[%emt 0:00:00]} Rd5 {[%emt 0:00:00]} 50. Kf4 {[%emt 0:00:00]} h5 {[%emt 0:00:00]} 51. gxh5+ {[%emt 0:00:00]} Rxh5 {[%emt 0:00:00]} 52. Rb6+ {[%emt 0:00:00]} Kh7 {[%emt 0:00:00]} 53. Kg4 {[%emt 0:00:00]} Ra5 {[%emt 0:00:00]} 54. Kh4 {[%emt 0:00:00]} g6 {[%emt 0:00:00]} 55. Rb4 {[%emt 0:00:00]} Kh6 {[%emt 0:00:00]} 56. Kg4 {[%emt 0:00:00]} Rg5+ {[%emt 0:00:00]} 57. Kh4 {[%emt 0:00:00]} Rg1 {[%emt 0:00:00]} 58. Rb6 {[%emt 0:00:00]} Ra1 {[%emt 0:00:00]} 59. Rb4 {[%emt 0:00:00]} g5+ {[%emt 0:00:00]} 60. Kg4 {[%emt 0:00:00]} Rg1+ {[%emt 0:00:00]} 61. Kh3 {[%emt 0:00:00]} Kh5 {[%emt 0:00:00]} 62. Rb5 {[%emt 0:00:00]} Ra1 {[%emt 0:00:00]} 63. Rb3 {[%emt 0:00:00]} g4+ {[%emt 0:00:00]} 64. Kg3 {[%emt 0:00:00]} Rg1+ {[%emt 0:00:00]} 65. Kh2 {[%emt 0:00:00]} Rf1 {[%emt 0:00:00]} 66. Kg3 {[%emt 0:00:00]} 1/2-1/2

[Event "Summer Prague Open-A 2022"]
[Site "Prague"]
[Date "2022.08.08"]
[Round "5.17"]
[White "Krivanek, Vladimir"]
[Black "Guz, Ari"]
[Result "1/2-1/2"]
[ECO "A05"]
[WhiteElo "2152"]
[BlackElo "2331"]
[Annotator "RC"]
[PlyCount "60"]
[EventDate "2022.08.05"]
[EventType "swiss"]
[EventCountry "CZE"]
[SourceTitle "playchess.com"]
[Source "ChessBase"]
[SourceQuality "1"]
[TimeControl "40/5400+30:1800+30"]

1. Nf3 {[%emt 0:00:30]} Nf6 {[%emt 0:08:46]} 2. c4 {[%emt 0:01:10]} e6 {[%emt 0:00:24]} 3. b3 {[%emt 0:00:51]} d5 {[%emt 0:01:49]} 4. Bb2 {[%emt 0:00:45]} Be7 {[%emt 0:01:43]} 5. e3 {[%emt 0:02:34]} b6 {[%emt 0:03:39]} 6. d3 {[%emt 0:02:37]} Bb7 {[%emt 0:00:47]} 7. Nbd2 {[%emt 0:00:57]} c5 {[%emt 0:02:00]} 8. g4 {[%emt 0:16:13]} h6 {[%emt 0:00:37]} 9. Rg1 {[%emt 0:00:57]} Nbd7 {[%emt 0:04:56]} 10. Qc2 {[%emt 0:01:25]} Qc7 {[%emt 0:00:25]} 11. cxd5 {[%emt 0:02:26]} exd5 {[%emt 0:01:42]} 12. d4 {[%emt 0:05:46]} O-O-O {[%emt 0:06:09]} 13. Bd3 {[%emt 0:03:56]} Kb8 {[%emt 0:02:09]} 14. O-O-O {[%emt 0:06:02]} Rc8 {[%emt 0:04:52]} 15. Ba3 {[%emt 0:29:40]} Rhe8 {[%emt 0:02:50]} 16. Kb1 c4 {[%emt 0:03:20]} 17. Bxe7 {[%emt 0:02:25]} Rxe7 {[%emt 0:00:08]} 18. Bf5 {[%emt 0:01:39]} c3 {[%emt 0:01:29]} 19. Nf1 {[%emt 0:00:29]} g6 {[%emt 0:03:25]} 20. Bd3 {[%emt 0:00:33]} Ne4 {[%emt 0:00:48]} 21. Ne1 {[%emt 0:02:58]} Qd6 {[%emt 0:02:45]} 22. f3 {[%emt 0:02:00]} Ng5 {[%emt 0:01:23]} 23. h4 {[%emt 0:00:48]} Ne6 {[%emt 0:00:52]} 24. Qh2 {[%emt 0:00:43]} Qxh2 {[%emt 0:02:27]} 25. Nxh2 {[%emt 0:00:02]} Ng7 {[%emt 0:02:32]} 26. Nc2 {[%emt 0:01:26]} h5 {[%emt 0:00:10]} 27. g5 {[%emt 0:02:21]} Rce8 {[%emt 0:01:05]} 28. Rge1 {[%emt 0:01:30]} Nf8 {[%emt 0:01:54]} 29. Nf1 {[%emt 0:00:32]} Nfe6 {[%emt 0:00:29]} 30. Ng3 {[%emt 0:00:43]} a5 {[%emt 0:00:56]} 1/2-1/2

[Event "Summer Prague Open-A 2022"]
[Site "Prague"]
[Date "2022.08.08"]
[Round "5.18"]
[White "Sorm, Daniel"]
[Black "Jun, Rudolf"]
[Result "0-1"]
[ECO "E28"]
[WhiteElo "2308"]
[BlackElo "2134"]
[Annotator "RC"]
[PlyCount "84"]
[EventDate "2022.08.05"]
[EventType "swiss"]
[EventCountry "CZE"]
[SourceTitle "playchess.com"]
[Source "ChessBase"]
[SourceQuality "1"]
[TimeControl "40/5400+30:1800+30"]

1. d4 {[%emt 0:01:15]} Nf6 {[%emt 0:00:08]} 2. c4 {[%emt 0:00:10]} e6 {[%emt 0:00:27]} 3. Nc3 {[%emt 0:00:05]} Bb4 {[%emt 0:00:14]} 4. e3 {[%emt 0:00:05]} O-O {[%emt 0:00:35]} 5. a3 {[%emt 0:00:28]} Bxc3+ {[%emt 0:00:59]} 6. bxc3 {[%emt 0:00:04]} d6 {[%emt 0:01:17]} 7. f3 {[%emt 0:00:29]} e5 {[%emt 0:02:16]} 8. e4 {[%emt 0:00:17]} h6 {[%emt 0:08:17]} 9. Bd3 {[%emt 0:02:00]} Nc6 {[%emt 0:02:09]} 10. Ne2 {[%emt 0:01:45]} Nh7 {[%emt 0:12:13]} 11. Qc2 {[%emt 0:12:40]} Qh4+ {[%emt 0:02:09]} 12. g3 {[%emt 0:00:08]} Qh3 {[%emt 0:03:28]} 13. Ng1 {[%emt 0:04:18]} Qd7 {[%emt 0:02:13]} 14. Be3 {[%emt 0:02:34]} b6 {[%emt 0:01:40]} 15. f4 {[%emt 0:04:22]} f5 {[%emt 0:17:08]} 16. exf5 {[%emt 0:00:23]} exd4 {[%emt 0:03:44]} 17. cxd4 {[%emt 0:00:58]} Re8 {[%emt 0:08:06]} 18. Kf2 {[%emt 0:00:41]} Nf6 {[%emt 0:08:42]} 19. h3 {[%emt 0:00:21]} Qe7 {[%emt 0:02:05]} 20. Qd2 {[%emt 0:05:13]} Na5 {[%emt 0:03:48]} 21. Re1 {[%emt 0:00:41]} Ne4+ {[%emt 0:01:00]} 22. Bxe4 {[%emt 0:00:08]} Qxe4 {[%emt 0:00:06]} 23. Nf3 {[%emt 0:00:33]} Bb7 {[%emt 0:02:17]} 24. d5 {[%emt 0:05:12]} Nxc4 {[%emt 0:01:27]} 25. Qd4 {[%emt 0:00:09]} Qxd5 {[%emt 0:03:09]} 26. Qxd5+ {[%emt 0:01:28]} Bxd5 {[%emt 0:00:08]} 27. Bc1 {[%emt 0:00:13]} Kf7 {[%emt 0:00:50]} 28. Rd1 {[%emt 0:04:26]} Bxf3 {[%emt 0:02:17]} 29. Kxf3 {[%emt 0:00:07]} Re7 {[%emt 0:00:13]} 30. Rh2 {[%emt 0:04:22]} Rae8 {[%emt 0:00:38]} 31. Rc2 {[%emt 0:00:09]} b5 {[%emt 0:01:33]} 32. Kg4 {[%emt 0:00:44]} Re1 {[%emt 0:01:37]} 33. Rd3 {[%emt 0:00:27]} c5 {[%emt 0:02:23]} 34. a4 {[%emt 0:03:52]} a6 {[%emt 0:00:15]} 35. Rb3 {[%emt 0:00:34]} Ne3+ {[%emt 0:01:46]} 36. Bxe3 {[%emt 0:00:16]} R1xe3 {[%emt 0:00:24]} 37. Rb1 {[%emt 0:01:19]} b4 {[%emt 0:00:44]} 38. Rd1 {[%emt 0:00:04]} b3 {[%emt 0:00:56]} 39. Rcd2 {[%emt 0:00:38]} Rd8 {[%emt 0:00:39]} 40. Rxd6 {[%emt 0:00:42]} Rxd6 {[%emt 0:00:08]} 41. Rxd6 {[%emt 0:30:06]} c4 {[%emt 0:30:38]} 42. Rb6 {[%emt 0:01:04]} Re7 {[%emt 0:00:58]} 0-1

[Event "Summer Prague Open-A 2022"]
[Site "Prague"]
[Date "2022.08.08"]
[Round "5.19"]
[White "Parligras, Cosmin"]
[Black "Soural, Jan"]
[Result "1/2-1/2"]
[ECO "B23"]
[WhiteElo "2277"]
[BlackElo "2119"]
[Annotator "RC"]
[PlyCount "58"]
[EventDate "2022.08.05"]
[EventType "swiss"]
[EventCountry "CZE"]
[SourceTitle "playchess.com"]
[Source "ChessBase"]
[SourceQuality "1"]
[TimeControl "40/5400+30:1800+30"]

1. e4 {[%emt 0:01:22]} c5 {[%emt 0:00:11]} 2. Nc3 {[%emt 0:00:08]} g6 {[%emt 0:00:24]} 3. f4 {[%emt 0:01:26]} Bg7 {[%emt 0:00:08]} 4. Nf3 {[%emt 0:00:32]} Nc6 {[%emt 0:00:12]} 5. Bc4 {[%emt 0:01:13]} e6 {[%emt 0:00:34]} 6. f5 {[%emt 0:00:54]} Nge7 {[%emt 0:14:10]} 7. fxe6 {[%emt 0:00:07]} dxe6 {[%emt 0:03:30]} 8. d3 {[%emt 0:04:25]} Nd4 {[%emt 0:07:17]} 9. Nxd4 {[%emt 0:01:01]} cxd4 {[%emt 0:02:11]} 10. Ne2 {[%emt 0:00:12]} Nc6 {[%emt 0:02:07]} 11. O-O {[%emt 0:02:55]} O-O {[%emt 0:03:20]} 12. a3 {[%emt 0:00:45]} Bd7 {[%emt 0:18:28]} 13. Bf4 {[%emt 0:05:55]} e5 {[%emt 0:02:10]} 14. Bd2 {[%emt 0:00:14]} Qe7 {[%emt 0:00:10]} 15. c3 {[%emt 0:06:41]} Be6 {[%emt 0:04:13]} 16. Bxe6 {[%emt 0:00:15]} Qxe6 {[%emt 0:00:15]} 17. cxd4 {[%emt 0:00:21]} Nxd4 {[%emt 0:00:59]} 18. Nxd4 {[%emt 0:00:18]} exd4 {[%emt 0:00:05]} 19. Rc1 {[%emt 0:03:52]} Rac8 {[%emt 0:03:28]} 20. Qa4 {[%emt 0:09:06]} a6 {[%emt 0:00:49]} 21. Qb4 {[%emt 0:12:45]} Qd7 {[%emt 0:08:46]} 22. h3 {[%emt 0:03:36]} h5 {[%emt 0:00:41]} 23. Bf4 {[%emt 0:05:06]} Rxc1 {[%emt 0:06:08]} 24. Rxc1 {[%emt 0:01:16]} Rc8 {[%emt 0:00:07]} 25. Rc5 {[%emt 0:08:11]} Rxc5 {[%emt 0:05:02]} 26. Qxc5 {[%emt 0:00:08]} Qa4 {[%emt 0:00:29]} 27. Qc8+ {[%emt 0:06:25]} Kh7 {[%emt 0:00:12]} 28. Qc1 {[%emt 0:00:19]} Qb3 {[%emt 0:03:15]} 29. Qd2 {[%emt 0:00:08]} b5 {[%emt 0:00:54]} 1/2-1/2

[Event "Summer Prague Open-A 2022"]
[Site "Prague"]
[Date "2022.08.08"]
[Round "5.20"]
[White "Karas, Marek"]
[Black "Kristiansen, Willy M"]
[Result "1-0"]
[ECO "D35"]
[WhiteElo "2286"]
[BlackElo "2121"]
[Annotator "RC"]
[PlyCount "121"]
[EventDate "2022.08.05"]
[EventType "swiss"]
[EventCountry "CZE"]
[SourceTitle "playchess.com"]
[Source "ChessBase"]
[SourceQuality "1"]
[TimeControl "40/5400+30:1800+30"]

1. d4 {[%emt 0:01:33]} d5 {[%emt 0:00:14]} 2. c4 {[%emt 0:00:42]} e6 {[%emt 0:00:10]} 3. Nc3 {[%emt 0:01:20]} Nf6 {[%emt 0:00:23]} 4. cxd5 {[%emt 0:01:00]} exd5 {[%emt 0:00:10]} 5. Bg5 {[%emt 0:00:08]} c6 {[%emt 0:00:17]} 6. e3 {[%emt 0:00:36]} Be7 {[%emt 0:00:17]} 7. Bd3 {[%emt 0:00:35]} Nbd7 {[%emt 0:00:13]} 8. Nf3 {[%emt 0:01:58]} O-O {[%emt 0:02:40]} 9. Qc2 {[%emt 0:03:02]} Re8 {[%emt 0:00:21]} 10. h3 {[%emt 0:03:03]} Nf8 {[%emt 0:00:25]} 11. O-O {[%emt 0:01:51]} Be6 {[%emt 0:00:38]} 12. Bf4 {[%emt 0:06:07]} Ng6 {[%emt 0:04:04]} 13. Ne5 {[%emt 0:08:42]} Bd6 {[%emt 0:09:05]} 14. Rad1 {[%emt 0:05:12]} Qc7 {[%emt 0:14:33]} 15. Nxg6 {[%emt 0:01:33]} hxg6 {[%emt 0:00:38]} 16. Nb5 cxb5 {[%emt 0:00:44]} 17. Qxc7 {[%emt 0:00:25]} Bxc7 {[%emt 0:00:06]} 18. Bxc7 {[%emt 0:00:06]} Rec8 {[%emt 0:01:04]} 19. Rc1 {[%emt 0:01:01]} a6 {[%emt 0:01:04]} 20. Rc2 {[%emt 0:01:44]} Kf8 {[%emt 0:00:25]} 21. Rfc1 {[%emt 0:00:38]} Ke7 {[%emt 0:01:20]} 22. g4 {[%emt 0:03:52]} Ne8 {[%emt 0:05:32]} 23. f3 {[%emt 0:03:36]} Nxc7 {[%emt 0:06:01]} 24. Rxc7+ {[%emt 0:00:06]} Kd6 {[%emt 0:00:24]} 25. Rxc8 {[%emt 0:00:14]} Rxc8 {[%emt 0:01:08]} 26. Rxc8 {[%emt 0:00:16]} Bxc8 {[%emt 0:00:05]} 27. h4 {[%emt 0:01:21]} Bd7 {[%emt 0:15:43]} 28. b4 {[%emt 0:00:54]} Be8 {[%emt 0:00:19]} 29. Kf2 {[%emt 0:00:27]} f6 {[%emt 0:00:55]} 30. Kg3 {[%emt 0:01:36]} b6 {[%emt 0:01:22]} 31. a3 {[%emt 0:01:12]} Bf7 {[%emt 0:00:38]} 32. Kf4 {[%emt 0:03:10]} Be8 {[%emt 0:01:18]} 33. Bc2 {[%emt 0:00:32]} a5 {[%emt 0:02:06]} 34. Bb3 {[%emt 0:00:26]} axb4 {[%emt 0:00:54]} 35. axb4 {[%emt 0:00:02]} Bf7 {[%emt 0:01:02]} 36. Bc2 {[%emt 0:04:26]} Be8 {[%emt 0:00:29]} 37. Bb3 {[%emt 0:02:19]} Bf7 {[%emt 0:03:50]} 38. e4 {[%emt 0:00:27]} Be6 {[%emt 0:01:36]} 39. Ke3 {[%emt 0:00:35]} Bf7 {[%emt 0:05:09]} 40. Kf4 {[%emt 0:15:44]} Bg8 {[%emt 0:02:22]} 41. Bc2 {[%emt 0:31:24]} Bf7 {[%emt 0:32:21]} 42. Bd3 {[%emt 0:06:18]} Be8 {[%emt 0:00:41]} 43. Bf1 {[%emt 0:00:55]} Ke6 {[%emt 0:01:07]} 44. Bh3 {[%emt 0:01:35]} Kd6 {[%emt 0:00:42]} 45. e5+ {[%emt 0:01:29]} Ke7 {[%emt 0:08:12]} 46. exf6+ {[%emt 0:02:09]} gxf6 {[%emt 0:00:53]} 47. g5 {[%emt 0:00:16]} Bf7 {[%emt 0:00:49]} 48. Bc8 {[%emt 0:00:39]} Be8 {[%emt 0:00:00]} 49. Bb7 {[%emt 0:00:00]} Bf7 {[%emt 0:00:00]} 50. Bc6 {[%emt 0:00:00]} Kd6 {[%emt 0:00:00]} 51. Bxb5 {[%emt 0:00:00]} Ke6 {[%emt 0:00:00]} 52. Bd3 {[%emt 0:00:00]} Ke7 {[%emt 0:00:00]} 53. Kg3 {[%emt 0:00:00]} Ke6 {[%emt 0:00:00]} 54. f4 {[%emt 0:00:00]} Be8 {[%emt 0:00:00]} 55. Ba6 {[%emt 0:00:00]} f5 {[%emt 0:00:38]} 56. h5 {[%emt 0:00:00]} Ke7 {[%emt 0:01:43]} 57. h6 {[%emt 0:00:00]} Kf8 {[%emt 0:00:25]} 58. Bb7 {[%emt 0:00:00]} Bf7 {[%emt 0:00:52]} 59. Kf3 {[%emt 0:00:00]} Bg8 {[%emt 0:02:14]} 60. Ke3 {[%emt 0:00:00]} Ke7 {[%emt 0:00:27]} 61. Bxd5 {[%emt 0:00:00]} 1-0

[Event "Summer Prague Open-A 2022"]
[Site "Prague"]
[Date "2022.08.08"]
[Round "5.21"]
[White "Kovalskyi, Roman"]
[Black "Polster, Christian"]
[Result "1-0"]
[ECO "B90"]
[WhiteElo "2056"]
[BlackElo "2236"]
[Annotator "RC"]
[PlyCount "85"]
[EventDate "2022.08.05"]
[EventType "swiss"]
[EventCountry "CZE"]
[SourceTitle "playchess.com"]
[Source "ChessBase"]
[SourceQuality "1"]
[TimeControl "40/5400+30:1800+30"]

1. e4 {[%emt 0:01:12]} c5 {[%emt 0:00:08]} 2. Nf3 {[%emt 0:00:21]} d6 {[%emt 0:00:09]} 3. d4 {[%emt 0:00:12]} cxd4 {[%emt 0:00:06]} 4. Nxd4 {[%emt 0:00:05]} Nf6 {[%emt 0:00:06]} 5. Nc3 {[%emt 0:00:05]} a6 {[%emt 0:00:06]} 6. Be3 {[%emt 0:00:04]} e5 {[%emt 0:00:11]} 7. Nb3 {[%emt 0:00:04]} Be6 {[%emt 0:00:06]} 8. f3 {[%emt 0:00:05]} Be7 {[%emt 0:00:06]} 9. Qd2 {[%emt 0:00:04]} O-O {[%emt 0:00:09]} 10. O-O-O {[%emt 0:00:06]} Nbd7 {[%emt 0:00:12]} 11. g4 {[%emt 0:00:06]} b5 {[%emt 0:00:34]} 12. g5 {[%emt 0:00:07]} b4 {[%emt 0:01:30]} 13. Ne2 {[%emt 0:00:07]} Ne8 {[%emt 0:00:41]} 14. f4 {[%emt 0:01:03]} a5 {[%emt 0:02:32]} 15. f5 {[%emt 0:04:48]} a4 {[%emt 0:02:35]} 16. fxe6 {[%emt 0:00:49]} axb3 {[%emt 0:00:17]} 17. exf7+ {[%emt 0:01:06]} Rxf7 {[%emt 0:03:18]} 18. Kb1 {[%emt 0:02:21]} bxc2+ {[%emt 0:12:37]} 19. Kxc2 {[%emt 0:01:21]} Qc8+ {[%emt 0:36:52]} 20. Kb1 {[%emt 0:03:15]} Qc4 {[%emt 0:00:35]} 21. Nc1 {[%emt 0:14:51]} Qxe4+ {[%emt 0:12:09]} 22. Bd3 {[%emt 0:00:58]} Qc6 {[%emt 0:03:35]} 23. Bc2 {[%emt 0:09:32]} Nc7 {[%emt 0:07:30]} 24. Bb3 {[%emt 0:02:43]} d5 {[%emt 0:05:01]} 25. Bxd5 {[%emt 0:01:25]} Nxd5 {[%emt 0:00:06]} 26. Qxd5 {[%emt 0:00:03]} Qg6+ {[%emt 0:00:39]} 27. Ka1 {[%emt 0:01:32]} Rd8 {[%emt 0:00:46]} 28. h4 {[%emt 0:07:12]} Nb6 {[%emt 0:03:27]} 29. Qb3 {[%emt 0:20:51]} Rxd1 {[%emt 0:07:50]} 30. Rxd1 {[%emt 0:00:03]} Qc6 {[%emt 0:00:21]} 31. Bxb6 {[%emt 0:04:41]} Qxb6 {[%emt 0:00:14]} 32. Rf1 {[%emt 0:00:03]} Qg6 {[%emt 0:00:31]} 33. Qd5 {[%emt 0:00:04]} h6 {[%emt 0:00:52]} 34. Nd3 {[%emt 0:19:12]} Bd6 {[%emt 0:00:29]} 35. h5 {[%emt 0:04:10]} Qxh5 {[%emt 0:00:24]} 36. gxh6 {[%emt 0:00:01]} e4 {[%emt 0:00:55]} 37. Qxf7+ {[%emt 0:03:43]} Qxf7 {[%emt 0:00:13]} 38. Rxf7 {[%emt 0:00:25]} Kxf7 {[%emt 0:00:02]} 39. h7 {[%emt 0:00:01]} exd3 {[%emt 0:01:05]} 40. h8=Q {[%emt 0:00:22]} d2 {[%emt 0:00:08]} 41. Qh5+ {[%emt 0:30:14]} Kf6 {[%emt 0:30:22]} 42. Qf3+ {[%emt 0:00:40]} Kg5 {[%emt 0:00:26]} 43. Qg2+ {[%emt 0:00:05]} 1-0